[Event "Titled Tuesday Blitz October 31 Late 2023"]
[White "Gerbelli Neto, Eduardo"]
[Black "BardArtem"]
[WhiteFideId "2103281"]
[WhiteElo "2394"]
[BlackElo "2704"]
[Result "0-1"]
[Round "2"]
[TimeControl "180+1"]
[Date "2023.10.31"]
[WhiteClock "0:00:19"]
[BlackClock "0:00:44"]
[Board "101"]

1. e4 {[%clk 0:03:00]}  e5 {[%clk 0:03:00]} 2. Nf3 {[%clk 0:03:00]}  Nc6 {[%clk 0:03:00]} 3. d4 {[%clk 0:03:00]}  exd4 {[%clk 0:03:01]} 4. Nxd4 {[%clk 0:03:01]}  Bb4+ {[%clk 0:03:02]} 5. c3 {[%clk 0:03:00]}  Bc5 {[%clk 0:03:02]} 6. Be3 {[%clk 0:02:50]}  Bb6 {[%clk 0:03:02]} 7. Bc4 {[%clk 0:02:45]}  Nf6 {[%clk 0:03:01]} 8. Nd2 {[%clk 0:02:44]}  O-O {[%clk 0:03:01]} 9. O-O {[%clk 0:02:43]}  Re8 {[%clk 0:03:01]} 10. Nxc6 {[%clk 0:02:32]}  bxc6 {[%clk 0:03:01]} 11. Bxb6 {[%clk 0:02:30]}  axb6 {[%clk 0:03:02]} 12. f3 {[%clk 0:02:31]}  d5 {[%clk 0:03:00]} 13. Bd3 {[%clk 0:02:28]}  Qd6 {[%clk 0:02:49]} 14. Qc2 {[%clk 0:02:17]}  d4 {[%clk 0:02:28]} 15. Nc4 {[%clk 0:02:09]}  Qd8 {[%clk 0:02:22]} 16. e5 {[%clk 0:02:02]}  Nd5 {[%clk 0:02:14]} 17. Bxh7+ {[%clk 0:01:59]}  Kh8 {[%clk 0:02:14]} 18. cxd4 {[%clk 0:01:51]}  b5 {[%clk 0:02:13]} 19. Nd2 {[%clk 0:01:43]}  Ne3 {[%clk 0:02:11]} 20. Qe4 {[%clk 0:01:41]}  Nxf1 {[%clk 0:02:11]} 21. Nxf1 {[%clk 0:01:35]}  f5 {[%clk 0:01:48]} 22. Bxf5 {[%clk 0:01:35]}  Bxf5 {[%clk 0:01:49]} 23. Qxf5 {[%clk 0:01:34]}  Qxd4+ {[%clk 0:01:49]} 24. Kh1 {[%clk 0:01:34]}  Qxe5 {[%clk 0:01:49]} 25. Qc2 {[%clk 0:01:27]}  c5 {[%clk 0:01:40]} 26. h3 {[%clk 0:01:07]}  c4 {[%clk 0:01:37]} 27. Nh2 {[%clk 0:01:04]}  Qe2 {[%clk 0:01:28]} 28. Qc3 {[%clk 0:00:58]}  c5 {[%clk 0:01:27]} 29. Ng4 {[%clk 0:00:45]}  b4 {[%clk 0:01:26]} 30. Qc1 {[%clk 0:00:45]}  c3 {[%clk 0:01:14]} 31. bxc3 {[%clk 0:00:43]}  Rxa2 {[%clk 0:01:13]} 32. Rxa2 {[%clk 0:00:41]}  Qxa2 {[%clk 0:01:14]} 33. cxb4 {[%clk 0:00:42]}  cxb4 {[%clk 0:01:15]} 34. Qg5 {[%clk 0:00:30]}  Qe6 {[%clk 0:00:55]} 35. Qb5 {[%clk 0:00:23]}  Qe7 {[%clk 0:00:45]} 36. Qh5+ {[%clk 0:00:21]}  Kg8 {[%clk 0:00:44]} 37. Qh6 {[%clk 0:00:19]}  gxh6 {[%clk 0:00:44]} 0-1


[Site "https://www.chess.com"]

[Event "Titled Tuesday Blitz October 31 Late 2023"]
[White "Burke, Carol Ann"]
[Black "nicholas_ilic"]
[WhiteFideId "11104643"]
[WhiteElo "2697"]
[BlackElo "2394"]
[Result "1-0"]
[Round "2"]
[TimeControl "180+1"]
[Date "2023.10.31"]
[WhiteClock "0:00:16"]
[BlackClock "0:00:00"]
[Board "102"]

1. Nf3 {[%clk 0:03:00]}  c5 {[%clk 0:02:59]} 2. c4 {[%clk 0:02:58]}  g6 {[%clk 0:02:56]} 3. d4 {[%clk 0:02:58]}  Bg7 {[%clk 0:02:55]} 4. e4 {[%clk 0:02:56]}  cxd4 {[%clk 0:02:55]} 5. Nxd4 {[%clk 0:02:57]}  Nc6 {[%clk 0:02:55]} 6. Be3 {[%clk 0:02:57]}  Nf6 {[%clk 0:02:55]} 7. Nc3 {[%clk 0:02:57]}  O-O {[%clk 0:02:54]} 8. Be2 {[%clk 0:02:57]}  d6 {[%clk 0:02:52]} 9. O-O {[%clk 0:02:57]}  Be6 {[%clk 0:02:47]} 10. Nxe6 {[%clk 0:02:42]}  fxe6 {[%clk 0:02:46]} 11. Rc1 {[%clk 0:02:36]}  Kh8 {[%clk 0:02:42]} 12. Qb3 {[%clk 0:02:33]}  b6 {[%clk 0:02:31]} 13. Rfd1 {[%clk 0:02:26]}  Nd7 {[%clk 0:02:29]} 14. Bg4 {[%clk 0:02:03]}  e5 {[%clk 0:02:27]} 15. Qa4 {[%clk 0:01:48]}  Rc8 {[%clk 0:02:08]} 16. Ne2 {[%clk 0:01:32]}  Rc7 {[%clk 0:02:04]} 17. b4 {[%clk 0:01:27]}  Nf6 {[%clk 0:02:03]} 18. Bf3 {[%clk 0:01:26]}  Nb8 {[%clk 0:01:50]} 19. c5 {[%clk 0:01:21]}  bxc5 {[%clk 0:01:46]} 20. bxc5 {[%clk 0:01:21]}  Rd7 {[%clk 0:01:46]} 21. c6 {[%clk 0:01:13]}  Rc7 {[%clk 0:01:45]} 22. Bxa7 {[%clk 0:01:13]}  Qc8 {[%clk 0:01:43]} 23. Bxb8 {[%clk 0:01:12]}  Qxb8 {[%clk 0:01:42]} 24. Nc3 {[%clk 0:01:12]}  Ra7 {[%clk 0:01:37]} 25. Qb3 {[%clk 0:01:06]}  Qa8 {[%clk 0:01:34]} 26. Nd5 {[%clk 0:01:00]}  Nxd5 {[%clk 0:01:04]} 27. exd5 {[%clk 0:01:01]}  Rxa2 {[%clk 0:01:01]} 28. c7 {[%clk 0:00:51]}  Ra3 {[%clk 0:00:33]} 29. Qc4 {[%clk 0:00:39]}  Raxf3 {[%clk 0:00:09]} 30. gxf3 {[%clk 0:00:38]}  Qc8 {[%clk 0:00:09]} 31. Qg4 {[%clk 0:00:35]}  Rf5 {[%clk 0:00:07]} 32. Kh1 {[%clk 0:00:30]}  Bh6 {[%clk 0:00:03]} 33. Rc2 {[%clk 0:00:28]}  Bf4 {[%clk 0:00:02]} 34. Rb1 {[%clk 0:00:26]}  Kg7 {[%clk 0:00:02]} 35. Rb8 {[%clk 0:00:26]}  Qa6 {[%clk 0:00:01]} 36. c8=Q {[%clk 0:00:20]}  Qf1+ {[%clk 0:00:01]} 37. Qg1 {[%clk 0:00:20]}  Qh3 {[%clk 0:00:02]} 38. Qg8+ {[%clk 0:00:17]}  Kh6 {[%clk 0:00:02]} 39. Q1xg6+ {[%clk 0:00:14]}  hxg6 {[%clk 0:00:01]} 40. Qh8+ {[%clk 0:00:15]}  Kg5 {[%clk 0:00:00]} 41. Qxh3 {[%clk 0:00:16]} 1-0


[Site "https://www.chess.com"]

[Event "Titled Tuesday Blitz October 31 Late 2023"]
[White "SergioMoralesG"]
[Black "Sipila, Vilka"]
[BlackFideId "505455"]
[WhiteElo "2382"]
[BlackElo "2655"]
[Result "0-1"]
[Round "2"]
[TimeControl "180+1"]
[Date "2023.10.31"]
[WhiteClock "0:00:00"]
[BlackClock "0:02:01"]
[Board "104"]

1. d4 {[%clk 0:03:00]}  f5 {[%clk 0:02:59]} 2. c4 {[%clk 0:02:59]}  Nf6 {[%clk 0:02:59]} 3. Nf3 {[%clk 0:03:00]}  g6 {[%clk 0:02:58]} 4. g3 {[%clk 0:03:00]}  Bg7 {[%clk 0:02:59]} 5. Bg2 {[%clk 0:03:01]}  O-O {[%clk 0:03:00]} 6. O-O {[%clk 0:03:01]}  d6 {[%clk 0:03:01]} 7. d5 {[%clk 0:03:00]}  c6 {[%clk 0:03:02]} 8. Nc3 {[%clk 0:02:58]}  e5 {[%clk 0:03:02]} 9. dxe6 {[%clk 0:02:58]}  Bxe6 {[%clk 0:03:02]} 10. Qd3 {[%clk 0:02:51]}  Re8 {[%clk 0:02:57]} 11. Ng5 {[%clk 0:02:46]}  Na6 {[%clk 0:02:39]} 12. Nxe6 {[%clk 0:02:35]}  Rxe6 {[%clk 0:02:40]} 13. Bf4 {[%clk 0:02:26]}  Nc5 {[%clk 0:02:39]} 14. Qc2 {[%clk 0:02:23]}  Nfe4 {[%clk 0:02:34]} 15. Nxe4 {[%clk 0:02:18]}  Nxe4 {[%clk 0:02:34]} 16. Rad1 {[%clk 0:02:06]}  Qa5 {[%clk 0:02:22]} 17. a3 {[%clk 0:01:51]}  Qb6 {[%clk 0:02:21]} 18. Bxe4 {[%clk 0:01:26]}  Rxe4 {[%clk 0:02:22]} 19. Rxd6 {[%clk 0:01:08]}  Qxb2 {[%clk 0:02:20]} 20. Qxb2 {[%clk 0:00:43]}  Bxb2 {[%clk 0:02:21]} 21. Rd7 {[%clk 0:00:37]}  Bxa3 {[%clk 0:02:16]} 22. Rxb7 {[%clk 0:00:29]}  Rxc4 {[%clk 0:02:11]} 23. Rd1 {[%clk 0:00:25]}  Bf8 {[%clk 0:02:09]} 24. Rdd7 {[%clk 0:00:19]}  a5 {[%clk 0:02:09]} 25. Rxh7 {[%clk 0:00:17]}  Re4 {[%clk 0:02:06]} 26. Bg5 {[%clk 0:00:00]}  Re6 {[%clk 0:02:01]} 0-1


[Site "https://www.chess.com"]

[Event "Titled Tuesday Blitz October 31 Late 2023"]
[White "Baghdasaryan, Vahe"]
[Black "Ozates, Tuna"]
[WhiteFideId "13303139"]
[BlackFideId "6354521"]
[WhiteElo "2381"]
[BlackElo "2652"]
[Result "0-1"]
[Round "2"]
[TimeControl "180+1"]
[Date "2023.10.31"]
[WhiteClock "0:00:00"]
[BlackClock "0:00:41"]
[Board "105"]

1. e4 {[%clk 0:03:00]}  c5 {[%clk 0:02:58]} 2. Nf3 {[%clk 0:02:58]}  a6 {[%clk 0:02:58]} 3. c3 {[%clk 0:02:56]}  d5 {[%clk 0:02:54]} 4. exd5 {[%clk 0:02:55]}  Nf6 {[%clk 0:02:54]} 5. d4 {[%clk 0:02:53]}  cxd4 {[%clk 0:02:54]} 6. cxd4 {[%clk 0:02:51]}  Nxd5 {[%clk 0:02:53]} 7. Nc3 {[%clk 0:02:50]}  Nc6 {[%clk 0:02:53]} 8. Bd3 {[%clk 0:02:50]}  Bg4 {[%clk 0:02:53]} 9. O-O {[%clk 0:02:29]}  e6 {[%clk 0:02:48]} 10. Be4 {[%clk 0:02:06]}  Nxc3 {[%clk 0:02:44]} 11. bxc3 {[%clk 0:02:05]}  Bd6 {[%clk 0:02:44]} 12. h3 {[%clk 0:02:04]}  Bh5 {[%clk 0:02:44]} 13. Qb3 {[%clk 0:01:54]}  Rb8 {[%clk 0:02:38]} 14. Nd2 {[%clk 0:01:48]}  O-O {[%clk 0:02:37]} 15. Nc4 {[%clk 0:01:47]}  Bc7 {[%clk 0:02:36]} 16. Ba3 {[%clk 0:01:45]}  Re8 {[%clk 0:02:30]} 17. Qc2 {[%clk 0:01:42]}  Bg6 {[%clk 0:02:29]} 18. Bxg6 {[%clk 0:01:39]}  hxg6 {[%clk 0:02:30]} 19. Rad1 {[%clk 0:01:39]}  Qd5 {[%clk 0:02:07]} 20. Ne3 {[%clk 0:01:39]}  Qg5 {[%clk 0:01:56]} 21. Qe4 {[%clk 0:01:17]}  Rbd8 {[%clk 0:01:51]} 22. Bc1 {[%clk 0:01:10]}  Qa5 {[%clk 0:01:49]} 23. Qc2 {[%clk 0:00:57]}  Ne7 {[%clk 0:01:33]} 24. Bd2 {[%clk 0:00:53]}  Rc8 {[%clk 0:01:24]} 25. Qb3 {[%clk 0:00:50]}  b5 {[%clk 0:01:13]} 26. c4 {[%clk 0:00:37]}  bxc4 {[%clk 0:01:14]} 27. Nxc4 {[%clk 0:00:36]}  Qd5 {[%clk 0:01:12]} 28. Be3 {[%clk 0:00:12]}  Nf5 {[%clk 0:01:11]} 29. Rfe1 {[%clk 0:00:12]}  Nh4 {[%clk 0:01:02]} 30. f3 {[%clk 0:00:10]}  Bg3 {[%clk 0:00:58]} 31. Bf2 {[%clk 0:00:10]}  Bxf2+ {[%clk 0:00:58]} 32. Kxf2 {[%clk 0:00:10]}  Rxc4 {[%clk 0:00:58]} 33. Re5 {[%clk 0:00:10]}  Qc6 {[%clk 0:00:53]} 34. d5 {[%clk 0:00:06]}  Qc5+ {[%clk 0:00:51]} 35. Kg3 {[%clk 0:00:04]}  Nf5+ {[%clk 0:00:49]} 36. Kh2 {[%clk 0:00:02]}  Qd6 {[%clk 0:00:46]} 37. Re1 {[%clk 0:00:00]}  Rc1 {[%clk 0:00:41]} 0-1


[Site "https://www.chess.com"]

[Event "Titled Tuesday Blitz October 31 Late 2023"]
[White "Amburgy, Ryan"]
[Black "Ljukin, Sergei"]
[WhiteFideId "30924820"]
[BlackFideId "14102200"]
[WhiteElo "2650"]
[BlackElo "2375"]
[Result "0-1"]
[Round "2"]
[TimeControl "180+1"]
[Date "2023.10.31"]
[WhiteClock "0:01:07"]
[BlackClock "0:01:35"]
[Board "106"]

1. Nf3 {[%clk 0:03:00]}  d5 {[%clk 0:03:00]} 2. d4 {[%clk 0:03:00]}  Nf6 {[%clk 0:03:00]} 3. c4 {[%clk 0:03:01]}  c6 {[%clk 0:03:00]} 4. Nc3 {[%clk 0:03:01]}  dxc4 {[%clk 0:03:00]} 5. a4 {[%clk 0:03:01]}  Bf5 {[%clk 0:03:00]} 6. Ne5 {[%clk 0:03:01]}  Na6 {[%clk 0:03:00]} 7. f3 {[%clk 0:03:00]}  Nd7 {[%clk 0:03:00]} 8. Nxc4 {[%clk 0:02:58]}  e5 {[%clk 0:02:55]} 9. e4 {[%clk 0:02:53]}  exd4 {[%clk 0:02:54]} 10. Qxd4 {[%clk 0:02:54]}  Nb4 {[%clk 0:02:51]} 11. Qd1 {[%clk 0:02:52]}  Be6 {[%clk 0:02:49]} 12. Bf4 {[%clk 0:02:46]}  Nc5 {[%clk 0:02:30]} 13. Nd6+ {[%clk 0:02:19]}  Bxd6 {[%clk 0:02:26]} 14. Bxd6 {[%clk 0:02:20]}  Bb3 {[%clk 0:01:59]} 15. Qd2 {[%clk 0:01:47]}  Nc2+ {[%clk 0:01:50]} 16. Ke2 {[%clk 0:01:48]}  Nxa1 {[%clk 0:01:40]} 17. Bxc5 {[%clk 0:01:07]}  Bc4+ {[%clk 0:01:35]} 0-1


[Site "https://www.chess.com"]

[Event "Titled Tuesday Blitz October 31 Late 2023"]
[White "Chan, Luis"]
[Black "KorolDimitriy75"]
[WhiteFideId "3216357"]
[WhiteElo "2570"]
[BlackElo "2353"]
[Result "1/2-1/2"]
[Round "2"]
[TimeControl "180+1"]
[Date "2023.10.31"]
[WhiteClock "0:00:07"]
[BlackClock "0:00:18"]
[Board "113"]

1. b3 {[%clk 0:03:00]}  c5 {[%clk 0:03:00]} 2. Bb2 {[%clk 0:03:00]}  Nc6 {[%clk 0:03:00]} 3. e3 {[%clk 0:03:01]}  d6 {[%clk 0:03:00]} 4. Nf3 {[%clk 0:03:01]}  e5 {[%clk 0:03:01]} 5. c4 {[%clk 0:02:52]}  g6 {[%clk 0:03:00]} 6. d4 {[%clk 0:02:49]}  exd4 {[%clk 0:02:59]} 7. exd4 {[%clk 0:02:49]}  Bg7 {[%clk 0:03:00]} 8. Be2 {[%clk 0:02:35]}  Nge7 {[%clk 0:03:00]} 9. O-O {[%clk 0:02:35]}  O-O {[%clk 0:03:00]} 10. Qd2 {[%clk 0:02:30]}  Bg4 {[%clk 0:02:59]} 11. d5 {[%clk 0:02:27]}  Bxf3 {[%clk 0:02:57]} 12. Bxf3 {[%clk 0:02:25]}  Nd4 {[%clk 0:02:55]} 13. Be4 {[%clk 0:02:14]}  Re8 {[%clk 0:02:45]} 14. Nc3 {[%clk 0:02:12]}  Qd7 {[%clk 0:02:41]} 15. Rae1 {[%clk 0:02:09]}  a6 {[%clk 0:02:18]} 16. b4 {[%clk 0:01:57]}  b6 {[%clk 0:01:55]} 17. a3 {[%clk 0:01:43]}  Rac8 {[%clk 0:01:54]} 18. Bd3 {[%clk 0:01:39]}  Nef5 {[%clk 0:01:41]} 19. Kh1 {[%clk 0:01:27]}  h5 {[%clk 0:01:19]} 20. Ne4 {[%clk 0:00:58]}  Re7 {[%clk 0:01:10]} 21. Ng3 {[%clk 0:00:20]}  Nxg3+ {[%clk 0:01:08]} 22. fxg3 {[%clk 0:00:20]}  Rce8 {[%clk 0:01:06]} 23. bxc5 {[%clk 0:00:18]}  bxc5 {[%clk 0:01:05]} 24. Rxe7 {[%clk 0:00:13]}  Qxe7 {[%clk 0:01:06]} 25. Qf4 {[%clk 0:00:10]}  f5 {[%clk 0:01:02]} 26. Bc1 {[%clk 0:00:06]}  Kh7 {[%clk 0:00:56]} 27. h3 {[%clk 0:00:05]}  Qe5 {[%clk 0:00:49]} 28. Qxe5 {[%clk 0:00:05]}  Bxe5 {[%clk 0:00:50]} 29. Kh2 {[%clk 0:00:04]}  h4 {[%clk 0:00:50]} 30. Bf4 {[%clk 0:00:03]}  hxg3+ {[%clk 0:00:50]} 31. Bxg3 {[%clk 0:00:04]}  Bxg3+ {[%clk 0:00:50]} 32. Kxg3 {[%clk 0:00:04]}  Re3+ {[%clk 0:00:50]} 33. Kf4 {[%clk 0:00:03]}  Rxd3 {[%clk 0:00:50]} 34. Re1 {[%clk 0:00:04]}  Rc3 {[%clk 0:00:45]} 35. Kg5 {[%clk 0:00:04]}  Rg3+ {[%clk 0:00:42]} 36. Kf6 {[%clk 0:00:05]}  Rxg2 {[%clk 0:00:41]} 37. Re7+ {[%clk 0:00:04]}  Kh6 {[%clk 0:00:38]} 38. Rd7 {[%clk 0:00:05]}  f4 {[%clk 0:00:37]} 39. Rd8 {[%clk 0:00:04]}  Kh7 {[%clk 0:00:36]} 40. Rd7+ {[%clk 0:00:05]}  Kh8 {[%clk 0:00:35]} 41. Rd8+ {[%clk 0:00:06]}  Kh7 {[%clk 0:00:35]} 42. Rd7+ {[%clk 0:00:06]}  Kh6 {[%clk 0:00:36]} 43. Rd8 {[%clk 0:00:07]}  Kh7 {[%clk 0:00:18]} 1/2-1/2


[Site "https://www.chess.com"]

[Event "Titled Tuesday Blitz October 31 Late 2023"]
[White "Senft, Sean"]
[Black "Seferov, Ismail"]
[WhiteFideId "2044960"]
[BlackFideId "34240780"]
[WhiteElo "2335"]
[BlackElo "2524"]
[Result "0-1"]
[Round "2"]
[TimeControl "180+1"]
[Date "2023.10.31"]
[WhiteClock "0:00:36"]
[BlackClock "0:01:50"]
[Board "119"]

1. d4 {[%clk 0:03:00]}  Nf6 {[%clk 0:02:57]} 2. c4 {[%clk 0:03:01]}  g6 {[%clk 0:02:58]} 3. Nc3 {[%clk 0:03:01]}  Bg7 {[%clk 0:02:58]} 4. e4 {[%clk 0:03:02]}  O-O {[%clk 0:02:59]} 5. f4 {[%clk 0:03:02]}  d6 {[%clk 0:02:59]} 6. Nf3 {[%clk 0:03:02]}  c5 {[%clk 0:02:56]} 7. d5 {[%clk 0:03:02]}  e6 {[%clk 0:02:56]} 8. Be2 {[%clk 0:03:02]}  exd5 {[%clk 0:02:56]} 9. exd5 {[%clk 0:03:02]}  Re8 {[%clk 0:02:57]} 10. O-O {[%clk 0:03:02]}  Bf5 {[%clk 0:02:57]} 11. Bd3 {[%clk 0:03:02]}  Bxd3 {[%clk 0:02:56]} 12. Qxd3 {[%clk 0:03:03]}  Na6 {[%clk 0:02:57]} 13. f5 {[%clk 0:03:02]}  Nb4 {[%clk 0:02:56]} 14. Qb1 {[%clk 0:03:02]}  Ng4 {[%clk 0:02:47]} 15. Bg5 {[%clk 0:02:59]}  Bf6 {[%clk 0:02:41]} 16. Bxf6 {[%clk 0:02:58]}  Qxf6 {[%clk 0:02:42]} 17. a3 {[%clk 0:02:58]}  Na6 {[%clk 0:02:40]} 18. Qd3 {[%clk 0:02:58]}  Nc7 {[%clk 0:02:38]} 19. Rae1 {[%clk 0:02:56]}  Rxe1 {[%clk 0:02:37]} 20. Rxe1 {[%clk 0:02:56]}  Re8 {[%clk 0:02:37]} 21. Rxe8+ {[%clk 0:02:56]}  Nxe8 {[%clk 0:02:38]} 22. fxg6 {[%clk 0:02:46]}  hxg6 {[%clk 0:02:35]} 23. Qe4 {[%clk 0:02:39]}  Ne5 {[%clk 0:02:33]} 24. Nxe5 {[%clk 0:02:38]}  dxe5 {[%clk 0:02:33]} 25. Qf3 {[%clk 0:02:20]}  Qe7 {[%clk 0:02:29]} 26. Kf2 {[%clk 0:02:08]}  Nd6 {[%clk 0:02:23]} 27. b3 {[%clk 0:02:08]}  f5 {[%clk 0:02:22]} 28. Nb5 {[%clk 0:01:54]}  Ne4+ {[%clk 0:02:19]} 29. Kg1 {[%clk 0:01:48]}  Qg5 {[%clk 0:02:19]} 30. h3 {[%clk 0:01:44]}  Ng3 {[%clk 0:02:13]} 31. d6 {[%clk 0:01:39]}  Qc1+ {[%clk 0:02:10]} 32. Kf2 {[%clk 0:01:30]}  Ne4+ {[%clk 0:02:03]} 33. Ke2 {[%clk 0:01:29]}  Qc2+ {[%clk 0:02:00]} 34. Ke1 {[%clk 0:01:22]}  Qd2+ {[%clk 0:02:00]} 35. Kf1 {[%clk 0:01:20]}  a6 {[%clk 0:02:00]} 36. Nc3 {[%clk 0:00:45]}  Nxc3 {[%clk 0:01:54]} 37. d7 {[%clk 0:00:45]}  Ne4 {[%clk 0:01:53]} 38. g4 {[%clk 0:00:36]}  Qxd7 {[%clk 0:01:50]} 39. gxf5 {[%clk 0:00:36]}  Nd2+ {[%clk 0:01:50]} 0-1


[Site "https://www.chess.com"]

[Event "Titled Tuesday Blitz October 31 Late 2023"]
[White "Freile Martin, Javier"]
[Black "Manukyan, Artyom"]
[WhiteFideId "3600165"]
[BlackFideId "13305786"]
[WhiteElo "2330"]
[BlackElo "2523"]
[Result "0-1"]
[Round "2"]
[TimeControl "180+1"]
[Date "2023.10.31"]
[WhiteClock "0:00:09"]
[BlackClock "0:00:05"]
[Board "121"]

1. c4 {[%clk 0:03:00]}  c5 {[%clk 0:02:58]} 2. Nc3 {[%clk 0:03:00]}  g6 {[%clk 0:02:59]} 3. Nf3 {[%clk 0:03:00]}  Bg7 {[%clk 0:02:59]} 4. e3 {[%clk 0:02:57]}  d6 {[%clk 0:02:59]} 5. d4 {[%clk 0:02:57]}  cxd4 {[%clk 0:02:59]} 6. exd4 {[%clk 0:02:56]}  Nf6 {[%clk 0:02:59]} 7. h3 {[%clk 0:02:56]}  O-O {[%clk 0:03:00]} 8. Be3 {[%clk 0:02:55]}  d5 {[%clk 0:03:00]} 9. c5 {[%clk 0:02:54]}  b6 {[%clk 0:03:00]} 10. cxb6 {[%clk 0:02:54]}  axb6 {[%clk 0:02:57]} 11. Qd2 {[%clk 0:02:54]}  Bf5 {[%clk 0:02:52]} 12. Bb5 {[%clk 0:02:51]}  Ne4 {[%clk 0:02:49]} 13. Nxe4 {[%clk 0:02:50]}  Bxe4 {[%clk 0:02:49]} 14. Ng5 {[%clk 0:02:44]}  Bf5 {[%clk 0:02:47]} 15. O-O {[%clk 0:02:41]}  Nd7 {[%clk 0:02:43]} 16. g4 {[%clk 0:02:39]}  Be6 {[%clk 0:02:36]} 17. Nxe6 {[%clk 0:02:36]}  fxe6 {[%clk 0:02:37]} 18. Rfe1 {[%clk 0:02:28]}  e5 {[%clk 0:02:32]} 19. Bg5 {[%clk 0:02:22]}  Ra5 {[%clk 0:01:59]} 20. a4 {[%clk 0:02:13]}  e4 {[%clk 0:01:55]} 21. b4 {[%clk 0:02:10]}  Ra7 {[%clk 0:01:54]} 22. Rac1 {[%clk 0:02:06]}  Nf6 {[%clk 0:01:49]} 23. Rc6 {[%clk 0:01:55]}  Rf7 {[%clk 0:01:23]} 24. Rec1 {[%clk 0:01:53]}  Ra8 {[%clk 0:01:22]} 25. Rc7 {[%clk 0:01:44]}  Qf8 {[%clk 0:01:17]} 26. Rb7 {[%clk 0:01:23]}  h6 {[%clk 0:01:14]} 27. Be3 {[%clk 0:01:20]}  h5 {[%clk 0:01:02]} 28. g5 {[%clk 0:01:18]}  Ne8 {[%clk 0:00:59]} 29. Rxb6 {[%clk 0:01:10]}  Nd6 {[%clk 0:00:59]} 30. Bc6 {[%clk 0:01:04]}  Nc4 {[%clk 0:00:52]} 31. Rxc4 {[%clk 0:01:00]}  dxc4 {[%clk 0:00:53]} 32. Bd5 {[%clk 0:00:56]}  Kh7 {[%clk 0:00:48]} 33. a5 {[%clk 0:00:50]}  Rf3 {[%clk 0:00:30]} 34. Bxe4 {[%clk 0:00:50]}  Rxh3 {[%clk 0:00:28]} 35. Rxg6 {[%clk 0:00:49]}  Kh8 {[%clk 0:00:21]} 36. Kg2 {[%clk 0:00:41]}  Rh4 {[%clk 0:00:20]} 37. f3 {[%clk 0:00:22]}  Rc8 {[%clk 0:00:18]} 38. Kg3 {[%clk 0:00:22]}  c3 {[%clk 0:00:17]} 39. Qc2 {[%clk 0:00:22]}  Rh1 {[%clk 0:00:15]} 40. Kg2 {[%clk 0:00:19]}  Re1 {[%clk 0:00:12]} 41. Kf2 {[%clk 0:00:18]}  Rh1 {[%clk 0:00:11]} 42. f4 {[%clk 0:00:17]}  Rh2+ {[%clk 0:00:11]} 43. Bg2 {[%clk 0:00:17]}  Qf7 {[%clk 0:00:08]} 44. Kg3 {[%clk 0:00:17]}  Rxg2+ {[%clk 0:00:08]} 45. Kxg2 {[%clk 0:00:17]}  Qd5+ {[%clk 0:00:06]} 46. Kg3 {[%clk 0:00:16]}  Qh1 {[%clk 0:00:03]} 47. d5 {[%clk 0:00:14]}  Qe1+ {[%clk 0:00:03]} 48. Kf3 {[%clk 0:00:14]}  Qf1+ {[%clk 0:00:03]} 49. Ke4 {[%clk 0:00:14]}  Qh1+ {[%clk 0:00:03]} 50. Kd3 {[%clk 0:00:12]}  Qxd5+ {[%clk 0:00:03]} 51. Ke2 {[%clk 0:00:12]}  Qg2+ {[%clk 0:00:04]} 52. Kd3 {[%clk 0:00:12]}  Rd8+ {[%clk 0:00:04]} 53. Kc4 {[%clk 0:00:09]}  Qd5# {[%clk 0:00:05]} 0-1


[Site "https://www.chess.com"]

[Event "Titled Tuesday Blitz October 31 Late 2023"]
[White "Buscar, Michael"]
[Black "Tologon tegin, Semetei"]
[WhiteFideId "2603616"]
[BlackFideId "13800574"]
[WhiteElo "2324"]
[BlackElo "2520"]
[Result "0-1"]
[Round "2"]
[TimeControl "180+1"]
[Date "2023.10.31"]
[WhiteClock "0:01:50"]
[BlackClock "0:01:49"]
[Board "123"]

1. e4 {[%clk 0:02:53]}  Nc6 {[%clk 0:02:59]} 2. Nf3 {[%clk 0:02:52]}  d5 {[%clk 0:02:59]} 3. exd5 {[%clk 0:02:52]}  Qxd5 {[%clk 0:03:00]} 4. Nc3 {[%clk 0:02:52]}  Qd8 {[%clk 0:03:00]} 5. d4 {[%clk 0:02:52]}  Bg4 {[%clk 0:02:57]} 6. Be2 {[%clk 0:02:51]}  e6 {[%clk 0:02:57]} 7. Be3 {[%clk 0:02:50]}  Nf6 {[%clk 0:02:57]} 8. Qd2 {[%clk 0:02:49]}  Bb4 {[%clk 0:02:56]} 9. a3 {[%clk 0:02:49]}  Ne4 {[%clk 0:02:55]} 10. Qd3 {[%clk 0:02:42]}  Nxc3 {[%clk 0:02:49]} 11. axb4 {[%clk 0:02:38]}  Nxe2 {[%clk 0:02:47]} 12. Qxe2 {[%clk 0:02:39]}  O-O {[%clk 0:02:39]} 13. b5 {[%clk 0:02:35]}  Nxd4 {[%clk 0:02:38]} 14. Bxd4 {[%clk 0:02:34]}  Bxf3 {[%clk 0:02:38]} 15. Qxf3 {[%clk 0:02:31]}  Qxd4 {[%clk 0:02:38]} 16. Qxb7 {[%clk 0:02:30]}  Qe5+ {[%clk 0:02:35]} 17. Kf1 {[%clk 0:02:25]}  Qxb2 {[%clk 0:02:29]} 18. Re1 {[%clk 0:02:24]}  Qxc2 {[%clk 0:02:25]} 19. h4 {[%clk 0:02:25]}  Qc4+ {[%clk 0:02:20]} 20. Kg1 {[%clk 0:02:25]}  Rfb8 {[%clk 0:02:20]} 21. Qf3 {[%clk 0:02:24]}  Qxb5 {[%clk 0:02:19]} 22. h5 {[%clk 0:02:24]}  h6 {[%clk 0:02:19]} 23. Rh4 {[%clk 0:02:23]}  a5 {[%clk 0:02:18]} 24. Rf4 {[%clk 0:02:16]}  Qd7 {[%clk 0:02:16]} 25. Rd1 {[%clk 0:02:14]}  Qe7 {[%clk 0:02:15]} 26. Rfd4 {[%clk 0:02:12]}  Rd8 {[%clk 0:02:14]} 27. Rd7 {[%clk 0:02:06]}  Rxd7 {[%clk 0:02:12]} 28. Qxa8+ {[%clk 0:02:05]}  Kh7 {[%clk 0:02:12]} 29. Qe4+ {[%clk 0:02:05]}  f5 {[%clk 0:02:11]} 30. Rxd7 {[%clk 0:02:02]}  Qxd7 {[%clk 0:02:12]} 31. Qf3 {[%clk 0:01:58]}  a4 {[%clk 0:02:11]} 32. Kh2 {[%clk 0:01:58]}  Qd6+ {[%clk 0:02:08]} 33. g3 {[%clk 0:01:58]}  a3 {[%clk 0:02:08]} 34. Qb3 {[%clk 0:01:57]}  Qa6 {[%clk 0:02:00]} 35. Qa2 {[%clk 0:01:52]}  Qb6 {[%clk 0:01:51]} 36. Qxa3 {[%clk 0:01:51]}  Qxf2+ {[%clk 0:01:50]} 37. Kh3 {[%clk 0:01:52]}  Qf1+ {[%clk 0:01:49]} 38. Kh2 {[%clk 0:01:52]}  Qe2+ {[%clk 0:01:49]} 39. Kg1 {[%clk 0:01:50]}  Qxh5 {[%clk 0:01:49]} 0-1


[Site "https://www.chess.com"]